[Event "Romanian Superliga Women 2024"]
[Site "Mamaia"]
[Date "2024.10.02"]
[Round "3.8"]
[White "Marin, Alexia-Iuliana"]
[Black "Moldovan, Maia-Rut"]
[Result "1/2-1/2"]
[ECO "E60"]
[WhiteElo "1580"]
[BlackElo "1778"]
[Annotator "NA RC"]
[PlyCount "84"]
[EventDate "2024.09.26"]
[EventType "team-tourn"]
[EventCountry "ROU"]
[SourceTitle "playchess.com"]
[Source "ChessBase"]
[SourceQuality "1"]
[TimeControl "40/5400+30:1800+30"]

1. d4 {[%emt 0:00:02]} Nf6 {[%emt 0:00:07]} 2. Nf3 {[%emt 0:00:04]} c5 {[%emt 0:00:05]} 3. e3 {[%emt 0:00:51]} g6 {[%emt 0:00:10]} 4. c4 {[%emt 0:04:10]} Bg7 {[%emt 0:03:41]} 5. b3 {[%emt 0:02:47]} b6 {[%emt 0:13:09]} 6. Bb2 {[%emt 0:06:58]} cxd4 {[%emt 0:06:43]} 7. exd4 {[%emt 0:01:26]} d5 {[%emt 0:01:51]} 8. Nbd2 {[%emt 0:14:40]} dxc4 {[%emt 0:13:08]} 9. Bxc4 {[%emt 0:32:51]} O-O {[%emt 0:04:30]} 10. O-O {[%emt 0:00:21]} Bb7 {[%emt 0:03:07]} 11. Re1 {[%emt 0:04:58]} Nc6 {[%emt 0:03:24]} 12. Rc1 {[%emt 0:09:09]} Rc8 {[%emt 0:05:23]} 13. Nf1 {[%emt 0:10:12]} Qd6 {[%emt 0:07:20]} 14. Ng3 {[%emt 0:03:20]} a6 {[%emt 0:11:28]} 15. Bf1 {[%emt 0:03:34]} Rfd8 {[%emt 0:00:44]} 16. Qd3 {[%emt 0:01:33]} Nd5 {[%emt 0:05:32]} 17. Ne5 {[%emt 0:01:14]} b5 {[%emt 0:13:18]} 18. Nxc6 {[%emt 0:00:21]} Bxc6 {[%emt 0:00:42]} 19. Ne4 {[%emt 0:00:25]} Qb8 {[%emt 0:01:01]} 20. Nc5 {[%emt 0:00:26]} Qa8 {[%emt 0:01:04]} 21. Qd2 {[%emt 0:00:52]} e6 {[%emt 0:00:55]} 22. Qa5 {[%emt 0:00:32]} Bb7 {[%emt 0:03:10]} 23. g3 {[%emt 0:00:19]} Nc7 {[%emt 0:00:38]} 24. Nxb7 {[%emt 0:00:10]} Qxb7 {[%emt 0:01:20]} 25. Bg2 Qb8 {[%emt 0:00:00]} 26. Qb4 {[%emt 0:01:09]} Qb6 {[%emt 0:00:00]} 27. Rc6 {[%emt 0:00:02]} Nd5 {[%emt 0:00:29]} 28. Bxd5 {[%emt 0:01:08]} Rxc6 {[%emt 0:00:16]} 29. Bxc6 {[%emt 0:00:01]} Qxc6 {[%emt 0:00:09]} 30. Rc1 {[%emt 0:00:08]} Qe4 {[%emt 0:00:58]} 31. Qa5 {[%emt 0:01:06]} Ra8 {[%emt 0:00:37]} 32. Qb6 {[%emt 0:00:35]} Qe2 {[%emt 0:01:31]} 33. Qb7 {[%emt 0:00:37]} Rd8 {[%emt 0:00:00]} 34. Rc8 {[%emt 0:00:13]} Qd1+ {[%emt 0:00:24]} 35. Kg2 {[%emt 0:00:14]} Rf8 {[%emt 0:00:26]} 36. Ba3 {[%emt 0:01:09]} Qxd4 {[%emt 0:00:38]} 37. Bxf8 {[%emt 0:00:24]} Bxf8 {[%emt 0:00:10]} 38. Qxa6 {[%emt 0:00:42]} Qd5+ {[%emt 0:00:16]} 39. Kg1 {[%emt 0:00:32]} Qd1+ {[%emt 0:00:08]} 40. Kg2 {[%emt 0:00:00]} Qd5+ {[%emt 0:00:00]} 41. f3 {[%emt 0:02:25]} Qd2+ {[%emt 0:00:43]} 42. Kh3 {[%emt 0:00:20]} Qh6+ {[%emt 0:00:50]} 1/2-1/2

[Event "Romanian Superliga Women 2024"]
[Site "Mamaia"]
[Date "2024.10.02"]
[Round "3.10"]
[White "Cosma, Elena-Luminita"]
[Black "Fataliyeva, Ulviyya"]
[Result "1/2-1/2"]
[ECO "E05"]
[WhiteElo "2226"]
[BlackElo "2378"]
[Annotator "TA"]
[PlyCount "111"]
[EventDate "2024.09.26"]
[EventType "team-tourn"]
[EventCountry "ROU"]
[SourceTitle "playchess.com"]
[Source "ChessBase"]
[SourceQuality "1"]
[TimeControl "40/5400+30:1800+30"]

{[%evp 22,111,15,6,7,21,0,0,0,0,5,6,18,10,1,6,0,0,6,0,7,5,4,3,4,8,27,37,58,58,91,47,73,59,52,28,28,28,28,31,50,27,32,14,25,0,0,0,0,0,35,0,57,0,0,0,0,-9,0,-3,0,0,0,0,0,-60,0,0,0,0,0,0,0,0,0,0,0,0,0,0,0,0,0,0,0,0,0,0,25,0,25,25]} 1. Nf3 {[%emt 0:00:53]} d5 {[%emt 0:00:13]} 2. g3 {[%emt 0:00:46]} Nf6 {[%emt 0:00:11]} 3. Bg2 {[%emt 0:00:12]} e6 {[%emt 0:00:27]} 4. O-O {[%emt 0:00:04]} Be7 {[%emt 0:00:24]} 5. c4 {[%emt 0:00:23]} O-O {[%emt 0:00:33]} 6. d4 {[%emt 0:00:04]} dxc4 {[%emt 0:00:05]} 7. Qc2 {[%emt 0:00:05]} a6 {[%emt 0:00:04]} 8. a4 {[%emt 0:00:18]} Bd7 {[%emt 0:00:08][%cal Bc8d7,Bd7c6,Bc6d5][%mdl 32]} 9. Qxc4 {[%emt 0:00:28]} Bc6 {[%emt 0:00:06]} 10. Bg5 {[%emt 0:00:30]} Bd5 {[%emt 0:00:17]} 11. Qd3 {[%emt 0:00:26]} c5 {[%emt 0:10:22]} 12. dxc5 {[%emt 0:00:22]} Nbd7 {[%emt 0:00:07]} 13. Nc3 {[%emt 0:00:23]} Nxc5 {[%emt 0:01:50]} 14. Qe3 {[%emt 0:00:31] [#] Hoping for Bxf6.} Rc8 {[%emt 0:03:30] The position is equal.} 15. Rad1 {[%emt 0:16:34]} h6 {[%emt 0:05:39]} 16. Nxd5 {[%emt 0:10:00]} exd5 {[%emt 0:00:59]} 17. Bxf6 {[%emt 0:10:11]} Bxf6 {[%emt 0:00:07]} 18. Bh3 {[%emt 0:01:51]} Rc7 {[%emt 0:01:42]} 19. Qa3 {[%emt 0:02:36]} Qe8 {[%emt 0:03:19]} 20. Rxd5 {[%emt 0:12:48]} (20. Rc1 {is interesting.} Qxe2 21. b4 Bb2 22. Qa2) 20... Qxe2 {[%emt 0:15:21]} 21. Rxc5 {[%emt 0:02:01]} Rxc5 {[%emt 0:02:36]} 22. Qxc5 {[%emt 0:00:06] [#] aiming for Kg2.} Qxf3 {[%emt 0:00:04]} 23. Qb4 {[%emt 0:05:01]} Rd8 {[%emt 0:02:21]} 24. Bg2 {[%emt 0:04:58]} Qf5 {[%emt 0:01:39]} 25. Qxb7 {[%emt 0:02:21]} Qa5 {[%emt 0:02:48]} 26. b3 {[%emt 0:02:27]} Bd4 {[%emt 0:02:51]} 27. h4 {[%emt 0:08:09]} (27. Be4 {feels hotter.} Qe5 28. Bd3 a5 29. Bc4) 27... Qe5 {[%emt 0:04:41]} 28. Qf3 {[%emt 0:03:38]} ({Reject} 28. Qxa6 Qxg3 29. h5 Qxb3 $11) 28... g6 {[%emt 0:02:06]} 29. Kh2 {[%emt 0:03:51]} (29. Rc1 {with more complications.} Rd6 30. Rc8+ Kg7 31. Qe4) 29... Rd6 {[%emt 0:00:43][%cal Bd8d6,Bd6f6,Bf6f5,Bf5e5][%mdl 32]} 30. Qe4 {[%emt 0:01:38]} Qf6 {[%emt 0:03:39]} 31. Bf3 {[%emt 0:01:27]} Bb6 {[%emt 0:01:05]} 32. Kg2 {[%emt 0:03:55]} Qb2 {[%emt 0:15:50][%cal Od6d2]} 33. Qf4 {[%emt 0:03:10]} Rf6 {[%emt 0:01:22]} 34. Qc4 {[%emt 0:03:09]} a5 {[%emt 0:00:26]} 35. Qd3 {[%emt 0:00:51]} Bd4 {[%emt 0:00:37]} 36. Qc4 {[%emt 0:01:11]} Qd2 {[%emt 0:01:03]} (36... Bb6 $11) 37. Qd5 {[%emt 0:01:06]} (37. Qe2 $14 Qxe2 38. Bxe2) 37... h5 $11 {[%emt 0:03:07]} 38. Kh2 {[%emt 0:00:30]} Rf5 {[%emt 0:01:34]} 39. Qe4 {[%emt 0:00:30]} Re5 {[%emt 0:02:28]} (39... Bxf2 {simplifies} 40. Qe2 Be3 41. Qxd2 Bxd2 42. Rd1 Bb4) 40. Qf4 {[%emt 0:00:00]} Qb2 {[%emt 0:00:00]} (40... Qxf4 {simplifies} 41. gxf4 Rc5 42. Kg2 Bf6) 41. Kg2 {[%emt 0:04:40]} Kg7 {[%emt 0:10:35]} 42. Be4 {[%emt 0:06:56]} Qxb3 {[%emt 0:02:27]} 43. Rb1 {[%emt 0:10:22]} (43. Bf3 $11 Qb2 (43... Qxa4 $2 {perishes.} 44. Rd1 $18) 44. Qc1) 43... Qe6 {[%emt 0:09:18]} ({Black should try} 43... Qxa4 $15 44. Bf3 Rf5) 44. Bd3 $1 {[%emt 0:02:37]} Qd5+ {[%emt 0:01:53]} 45. Qf3 {[%emt 0:02:30]} Qxf3+ {[%emt 0:08:02]} 46. Kxf3 {[%emt 0:00:05][%mdl 4096] Endgame. KRB-KRB} Rc5 {[%emt 0:00:24]} 47. Rd1 {[%emt 0:01:33][%cal Od3g6]} Rc3 {[%emt 0:00:25]} 48. Kg2 {[%emt 0:00:07][%cal Od3g6]} Bc5 {[%emt 0:00:28]} 49. Rd2 {[%emt 0:00:35]} Bb4 {[%emt 0:00:30]} 50. Rd1 $1 {[%emt 0:00:04]} Kf6 {[%emt 0:02:09]} 51. Kf1 {[%emt 0:02:54]} Ke5 {[%emt 0:00:24]} 52. Re1+ {[%emt 0:00:36]} Kd4 {[%emt 0:01:31]} 53. Bb5 {[%emt 0:00:05]} Rf3 {[%emt 0:00:20]} 54. Re2 {[%emt 0:00:17]} Rf6 {[%emt 0:02:47]} 55. Kg2 {[%emt 0:00:10]} Bc5 {[%emt 0:00:38]} 56. Rd2+ {[%emt 0:00:55] Weighted Error Value: White=0.09 (flawless) /Black=0.10 (very precise) .  Mistake:       	White=2     	Black=2      Inaccurate:     	White=2     	Black=3      OK:         	White=19    	Black=17     Strong:       	White=2     	---} 1/2-1/2

[Event "Romanian Superliga Women 2024"]
[Site "Mamaia"]
[Date "2024.10.02"]
[Round "3.11"]
[White "Navrotescu, Andreea"]
[Black "Cosman, Andreea-Marioara"]
[Result "1/2-1/2"]
[ECO "A37"]
[WhiteElo "2281"]
[BlackElo "2195"]
[Annotator "RC"]
[PlyCount "155"]
[EventDate "2024.09.26"]
[EventType "team-tourn"]
[EventCountry "ROU"]
[SourceTitle "playchess.com"]
[Source "ChessBase"]
[SourceQuality "1"]
[TimeControl "40/5400+30:1800+30"]

1. c4 {[%emt 0:00:03]} c5 {[%emt 0:00:11]} 2. g3 {[%emt 0:00:08]} Nc6 {[%emt 0:01:23]} 3. Bg2 {[%emt 0:00:29]} g6 {[%emt 0:00:26]} 4. Nf3 {[%emt 0:00:23]} Bg7 {[%emt 0:01:01]} 5. Nc3 {[%emt 0:00:12]} d6 {[%emt 0:02:02]} 6. a3 {[%emt 0:00:19]} a5 {[%emt 0:00:49]} 7. O-O {[%emt 0:02:44]} e5 {[%emt 0:03:59]} 8. d3 {[%emt 0:06:18]} Nge7 {[%emt 0:00:07]} 9. Bg5 {[%emt 0:01:47]} f6 {[%emt 0:08:19]} 10. Bd2 {[%emt 0:01:07]} O-O {[%emt 0:00:40]} 11. Ne1 {[%emt 0:01:12]} Be6 {[%emt 0:06:57]} 12. Nd5 {[%emt 0:00:42]} Bf7 {[%emt 0:03:56]} 13. Nxe7+ {[%emt 0:05:54]} Nxe7 {[%emt 0:08:15]} 14. Bxb7 {[%emt 0:00:29]} Rb8 {[%emt 0:00:06]} 15. Bg2 {[%emt 0:00:13]} Rxb2 {[%emt 0:05:16]} 16. Bc3 {[%emt 0:00:20]} Rb8 {[%emt 0:00:05]} 17. Qa4 {[%emt 0:02:22]} d5 {[%emt 0:01:27]} 18. cxd5 {[%emt 0:03:11]} Nxd5 {[%emt 0:02:44]} 19. Bd2 {[%emt 0:19:50]} Rb2 {[%emt 0:06:16]} 20. Nf3 {[%emt 0:00:18]} c4 {[%emt 0:07:54]} 21. Qxa5 {[%emt 0:09:13]} Qxa5 {[%emt 0:06:53]} 22. Bxa5 {[%emt 0:00:02]} cxd3 {[%emt 0:01:37]} 23. exd3 {[%emt 0:00:24]} Ra8 {[%emt 0:01:59]} 24. Bd2 {[%emt 0:01:28]} Rb3 {[%emt 0:00:57]} 25. a4 {[%emt 0:04:53]} Rxd3 {[%emt 0:02:48]} 26. Rfd1 {[%emt 0:01:55]} f5 {[%emt 0:07:17]} 27. Ng5 {[%emt 0:07:22]} e4 {[%emt 0:02:58]} 28. Rac1 {[%emt 0:04:46]} Nc3 {[%emt 0:04:22]} 29. Bxc3 {[%emt 0:02:58]} Rxd1+ {[%emt 0:00:22]} 30. Rxd1 {[%emt 0:00:02]} Bxc3 {[%emt 0:00:11]} 31. Bf1 {[%emt 0:05:05]} h6 {[%emt 0:04:40]} 32. Nxf7 {[%emt 0:01:15]} Kxf7 {[%emt 0:00:05]} 33. Rd7+ {[%emt 0:01:08]} Kf6 {[%emt 0:03:49]} 34. Bb5 {[%emt 0:00:28]} g5 {[%emt 0:01:20]} 35. Rd6+ {[%emt 0:00:54]} Kg7 {[%emt 0:01:09]} 36. Kg2 {[%emt 0:02:31]} Rf8 {[%emt 0:01:53]} 37. Rc6 {[%emt 0:01:27]} Bd2 {[%emt 0:01:32]} 38. Rd6 {[%emt 0:04:10]} Bb4 {[%emt 0:00:27]} 39. Rb6 {[%emt 0:02:03]} Rf6 {[%emt 0:02:06]} 40. Bc6 {[%emt 0:00:00]} Ba5 {[%emt 0:00:00]} 41. Rb7+ {[%emt 0:01:13]} Kf8 {[%emt 0:05:05]} 42. Bd5 {[%emt 0:00:56]} Bb6 {[%emt 0:01:52]} 43. h4 {[%emt 0:09:48]} gxh4 {[%emt 0:01:18]} 44. gxh4 {[%emt 0:00:02]} Ke8 {[%emt 0:01:53]} 45. h5 {[%emt 0:03:23]} Kd8 {[%emt 0:01:26]} 46. Kf1 {[%emt 0:08:46]} Rd6 {[%emt 0:03:45]} 47. Bc4 {[%emt 0:01:25]} f4 {[%emt 0:02:56]} 48. Kg2 {[%emt 0:02:24]} f3+ {[%emt 0:04:14]} 49. Kg3 {[%emt 0:00:19]} Bc7 {[%emt 0:01:01]} 50. Kg4 {[%emt 0:01:12]} Rf6 {[%emt 0:00:30]} 51. Bb5 {[%emt 0:04:16]} Rf4+ {[%emt 0:06:16]} 52. Kh3 {[%emt 0:00:01]} Rf5 {[%emt 0:03:19]} 53. Kh4 {[%emt 0:00:38]} Rf4+ {[%emt 0:00:20]} 54. Kh3 {[%emt 0:00:03]} Rf5 {[%emt 0:00:31]} 55. Kh4 {[%emt 0:00:10]} Rg5 {[%emt 0:02:53]} 56. Ra7 {[%emt 0:03:44]} Bb6 {[%emt 0:01:06]} 57. Rd7+ {[%emt 0:04:01]} Kc8 {[%emt 0:00:03]} 58. Rd2 {[%emt 0:01:08]} Rg2 {[%emt 0:00:49]} 59. Rc2+ {[%emt 0:00:06]} Kb8 {[%emt 0:01:26]} 60. Bf1 {[%emt 0:04:34]} Rg1 {[%emt 0:00:54]} 61. Bb5 {[%emt 0:01:41]} e3 {[%emt 0:00:28]} 62. fxe3 {[%emt 0:00:07]} Bxe3 {[%emt 0:00:12]} 63. Rc3 {[%emt 0:01:02]} Bg5+ {[%emt 0:00:34]} 64. Kh3 {[%emt 0:00:01]} f2 {[%emt 0:00:33]} 65. Rf3 {[%emt 0:00:04]} Rh1+ {[%emt 0:00:23]} 66. Kg2 {[%emt 0:01:49]} Rxh5 {[%emt 0:00:15]} 67. Rxf2 {[%emt 0:00:12]} Rh4 {[%emt 0:00:51]} 68. Rf7 {[%emt 0:00:35]} Re4 {[%emt 0:00:22]} 69. Kf3 {[%emt 0:00:22]} Re7 {[%emt 0:00:17]} 70. Rf5 {[%emt 0:00:03]} Bd2 {[%emt 0:00:41]} 71. Rd5 {[%emt 0:00:14]} Bg5 {[%emt 0:00:35]} 72. a5 {[%emt 0:00:06]} Ka7 {[%emt 0:00:04]} 73. Kg4 {[%emt 0:00:21]} Be3 {[%emt 0:00:57]} 74. Kf5 {[%emt 0:00:07]} Bf2 {[%emt 0:00:27]} 75. Kg6 {[%emt 0:00:49]} Be3 {[%emt 0:00:33]} 76. Kf6 {[%emt 0:00:01]} Rc7 {[%emt 0:00:23]} 77. Ke6 {[%emt 0:00:18]} Rc5 {[%emt 0:00:16]} 78. Rxc5 {[%emt 0:03:24]} 1/2-1/2

[Event "Romanian Superliga Women 2024"]
[Site "Mamaia"]
[Date "2024.10.02"]
[Round "3.12"]
[White "Ciolacu, Alessia-Mihaela"]
[Black "Lehaci, Miruna-Daria"]
[Result "1/2-1/2"]
[ECO "D45"]
[WhiteElo "2160"]
[BlackElo "2180"]
[Annotator "RC"]
[PlyCount "22"]
[EventDate "2024.09.26"]
[EventType "team-tourn"]
[EventCountry "ROU"]
[SourceTitle "playchess.com"]
[Source "ChessBase"]
[SourceQuality "1"]
[TimeControl "40/5400+30:1800+30"]

1. d4 {[%emt 0:00:04]} d5 {[%emt 0:00:12]} 2. c4 {[%emt 0:00:21]} e6 {[%emt 0:00:12]} 3. Nf3 {[%emt 0:00:12]} Nf6 {[%emt 0:00:32]} 4. Nc3 {[%emt 0:01:02]} c6 {[%emt 0:00:50]} 5. e3 {[%emt 0:00:44]} Nbd7 {[%emt 0:00:32]} 6. Be2 {[%emt 0:00:47]} dxc4 {[%emt 0:01:36]} 7. a4 {[%emt 0:00:52]} Nb6 {[%emt 0:19:16]} 8. O-O {[%emt 0:10:41]} c5 {[%emt 0:16:09]} 9. dxc5 {[%emt 0:14:07]} Qxd1 {[%emt 0:01:37]} 10. Rxd1 {[%emt 0:00:14]} Bxc5 {[%emt 0:04:11]} 11. Ne5 {[%emt 0:05:37]} Nbd5 {[%emt 0:04:37]} 1/2-1/2